bitfinex/quotes_ETHUSD_20240910
["timestamp","ask_amount","ask_price","bid_price","bid_amount"]
[1725973330909,0.88103297,2350.4,2350.0,2.2737]
[1725973331073,0.88103297,2350.3,2349.7,2.2737]
[1725973331313,1.10129121,2350.3,2349.7,2.2737]
[1725973331616,0.78271059,2350.2,2349.7,2.2737]
[1725973331772,2.837883,2350.2,2349.7,2.2737]
[1725973332115,1.10129121,2350.3,2349.7,2.2737]
[1725973332329,0.78271272,2350.2,2349.7,2.2737]
[1725973332473,0.88103297,2350.4,2349.7,2.50107]
[1725973332815,0.88103297,2350.3,2349.7,2.2737]
[1725973334406,0.88103297,2350.2,2349.7,2.2737]
[1725973334610,2.83730817,2350.2,2349.7,2.2737]
[1725973334775,0.88103297,2350.2,2349.7,2.2737]
[1725973335910,0.88103297,2350.3,2349.7,2.2737]
[1725973336212,0.78244232,2350.2,2349.7,2.2737]
[1725973336509,0.88103297,2350.2,2349.7,2.2737]
[1725973336812,2.83994858,2350.2,2349.7,2.2737]
[1725973337015,0.88103297,2350.2,2349.7,2.2737]
[1725973337220,1.38527146,2350.3,2349.7,2.2737]
[1725973337384,1.0542271,2350.2,2349.7,2.2737]
[1725973337584,0.88103297,2350.2,2349.7,2.2737]
[1725973337893,0.88103297,2350.4,2349.9,2.4264]
[1725973338101,0.88103297,2350.4,2349.9,2.67755045]
[1725973338451,0.88103297,2350.3,2349.9,2.4264]
[1725973338986,0.88103297,2350.2,2349.9,2.4264]
[1725973339816,1.32154945,2350.3,2349.9,2.4264]
[1725973339817,2.83953609,2350.1,2349.9,2.4264]
[1725973340134,1.54221322,2350.2,2349.9,2.4264]
[1725973340337,0.78347193,2350.1,2349.9,2.4264]
[1725973340631,4.58158274,2350.3,2349.9,2.4264]
[1725973340632,4.14106626,2350.3,2349.9,2.4264]
[1725973340834,3.38599579,2350.2,2349.9,2.4264]
[1725973341041,1.42729454,2350.2,2349.9,2.4264]
[1725973341640,0.54626157,2350.2,2349.4,7.48]
[1725973341944,0.54626157,2350.2,2349.3,0.0031818]
[1725973341945,3.26003329,2349.5,2349.3,0.0031818]
[1725973344363,2.4059,2349.4,2349.3,0.0031818]
[1725973344567,5.930116,2349.4,2349.0,0.00113422]
[1725973344723,4.58259902,2349.1,2349.0,0.00113422]
[1725973344924,8.54734594,2349.1,2349.0,0.00113422]
[1725973345228,6.54004876,2349.1,2349.0,0.00113422]
[1725973345631,0.88144482,2349.2,2349.0,0.00113422]
[1725973345872,0.88144482,2349.4,2349.1,2.3942]
[1725973346069,4.14147811,2349.4,2349.0,0.00113422]
[1725973346222,0.78278164,2349.3,2349.0,0.00113422]
[1725973346420,2.83831334,2349.3,2349.0,0.00113422]
[1725973346745,0.88144482,2349.3,2349.0,0.00113422]
[1725973346944,2.83810419,2349.3,2349.0,0.00113422]
[1725973347129,1.4278044,2349.3,2349.0,0.00113422]
[1725973347337,0.78255345,2349.2,2349.0,0.00113422]
[1725973347641,1.4278044,2349.3,2349.0,0.00113422]
[1725973348522,0.78264183,2349.2,2349.0,0.00113422]
[1725973348721,1.4278044,2349.3,2349.0,0.00113422]
[1725973348927,1.38362,2349.2,2349.0,0.00113422]
[1725973349127,4.74247365,2349.2,2349.0,0.00113422]
[1725973349356,3.27813924,2349.1,2349.0,0.00113422]
[1725973349555,5.28422145,2349.1,2349.0,0.00113422]
[1725973349783,5.28416426,2349.1,2349.0,0.00113422]
[1725973349988,6.70243626,2349.1,2349.0,0.00113422]
[1725973350152,4.25512651,2349.1,2349.0,0.00113422]
[1725973350351,4.69580378,2349.1,2349.0,0.00113422]
[1725973350544,9.02819523,2349.1,2349.0,0.00113422]
[1725973351184,7.26477425,2349.1,2349.0,0.00113422]
[1725973351360,2.83665339,2349.1,2349.0,0.00113422]
[1725973351559,2.83625452,2349.1,2349.0,0.00113422]
[1725973351781,0.78215573,2349.1,2349.0,0.00113422]
[1725973352395,1.48162738,2349.2,2349.0,0.00113422]
[1725973352699,0.60099554,2349.2,2349.0,0.00113422]
[1725973353148,3.86102883,2349.2,2349.0,0.00113422]
[1725973353349,0.47416607,2349.1,2349.0,0.00113422]
[1725973353882,4.14066513,2349.4,2349.0,0.00113422]
[1725973354064,4.14066513,2349.4,2349.1,2.4649]
[1725973354065,0.88063184,2349.4,2349.1,2.4649]
[1725973354267,0.88063184,2349.7,2349.1,2.71150342]
[1725973354569,3.26003329,2349.6,2349.1,2.4649]
[1725973355316,4.14066513,2349.6,2349.1,2.4649]
[1725973355517,3.80618365,2349.6,2349.1,2.4649]
[1725973355672,4.68681549,2349.6,2349.1,2.4649]
[1725973356226,3.26003329,2349.2,2349.0,0.00113422]
[1725973356522,4.14066513,2349.2,2349.0,0.00113422]
[1725973356716,3.38180133,2349.1,2349.0,0.00113422]
[1725973356869,1.32815542,2349.1,2349.0,0.00113422]
[1725973357504,0.54615036,2349.1,2349.0,0.00113422]
[1725973358008,1.32804135,2349.1,2349.0,0.00113422]
[1725973358212,3.38149699,2349.1,2349.0,0.00113422]
[1725973358366,0.88063184,2349.3,2349.0,0.00113422]
[1725973358568,4.14066513,2349.4,2349.0,0.00113422]
[1725973358868,3.26003329,2349.2,2349.0,0.00113422]
[1725973359214,0.32600333,2349.1,2349.0,0.00113422]
[1725973359770,1.10786226,2349.1,2349.0,0.00113422]
[1725973360214,1.9884941,2349.1,2349.0,0.00113422]
[1725973360506,4.08654178,2349.1,2348.8,0.0243002]
[1725973360724,4.89701466,2348.9,2348.8,0.0243002]
[1725973360882,9.73137837,2348.9,2348.8,0.0243002]
[1725973361085,9.97409625,2348.9,2348.3,0.0243002]
[1725973361283,4.89647436,2348.6,2348.3,0.0243002]
[1725973361501,1.40264277,2348.5,2348.3,0.0243002]
[1725973361703,0.62158729,2348.5,2348.3,0.0243002]
[1725973362233,4.89647436,2348.9,2348.3,0.0243002]
[1725973362404,0.78083629,2348.8,2348.3,0.0243002]
[1725973362607,0.78085579,2348.8,2348.3,0.0243002]
[1725973362917,4.89647436,2348.9,2348.3,0.0243002]
[1725973363121,0.69963313,2348.8,2348.3,0.0243002]
[1725973363425,16.57647436,2349.2,2348.4,2.365]
[1725973363630,0.78074082,2349.1,2348.4,2.365]
[1725973363787,0.78074082,2349.1,2348.4,2.60393002]
[1725973364327,9.17647436,2349.2,2348.4,2.60393002]
[1725973364533,0.87959902,2349.3,2348.4,2.60393002]
[1725973364685,0.87959902,2349.3,2348.4,2.68908376]
[1725973364912,0.78063011,2349.4,2348.6,2.485]
[1725973364913,0.87959902,2349.4,2348.6,2.485]
[1725973365216,2.05056155,2349.4,2348.6,2.485]
[1725973365552,0.87959902,2349.4,2348.6,2.485]
[1725973365863,3.86709167,2349.4,2348.6,2.485]
[1725973366058,4.01687534,2349.2,2348.6,2.485]
[1725973366355,0.78064238,2349.1,2348.3,2.3271002]
[1725973366520,0.81223167,2349.0,2348.3,2.3271002]
[1725973369072,4.89647436,2349.2,2348.3,2.3271002]
[1725973369283,4.01687534,2349.2,2348.3,2.3271002]
[1725973370389,4.89647436,2349.2,2348.3,2.3271002]
[1725973370597,0.87959902,2349.3,2348.3,2.3271002]
[1725973370884,4.01687534,2349.2,2348.3,2.3271002]
[1725973371039,0.64668837,2349.3,2348.3,2.3271002]
[1725973371242,4.89647436,2349.5,2348.4,0.08514678]
[1725973371546,4.89647436,2349.5,2348.4,2.3666]
[1725973371745,0.78162634,2349.4,2348.4,2.3666]
[1725973371951,4.89647436,2349.5,2348.6,2.3999]
[1725973372318,2.83430269,2349.4,2348.6,2.3999]
[1725973372447,0.87959902,2349.4,2348.6,2.3999]
[1725973372645,2.8342452,2349.4,2348.6,2.3999]
[1725973372887,0.87959902,2349.4,2348.6,2.3999]
[1725973373083,0.87959902,2349.4,2348.7,0.23999]
[1725973373289,2.83460982,2349.4,2348.8,2.3341]
[1725973373443,0.78206886,2349.3,2348.8,2.3341]
[1725973373796,0.29810664,2349.3,2348.8,2.3341]
[1725973373960,0.29810664,2349.3,2348.3,0.10944385]
[1725973373961,0.87959902,2349.5,2348.9,2.54024178]
[1725973374172,0.90389922,2350.2,2349.3,2.4551]
[1725973374364,0.0243002,2350.2,2349.5,2.3647]
[1725973374548,0.0243002,2350.2,2349.7,2.3647]
[1725973374864,0.0243002,2350.2,2349.8,2.44979891]
[1725973375042,0.0243002,2350.2,2349.8,2.3647]
[1725973375471,0.90389922,2350.2,2349.8,2.3647]
[1725973375658,0.44233842,2350.2,2349.8,2.3647]
[1725973375868,0.0243002,2350.2,2349.8,2.3647]
[1725973378507,0.0243002,2350.2,2349.9,0.08510686]
[1725973378800,0.0243002,2350.2,2350.0,2.4632]
[1725973381793,0.0243002,2350.2,2349.5,2.3824]
[1725973381966,0.0243002,2350.2,2349.5,3.3304]
[1725973383408,0.90389922,2350.2,2349.5,3.3304]
[1725973383707,0.0243002,2350.2,2349.5,3.3304]
[1725973383910,0.90389922,2350.2,2349.5,3.3304]
[1725973384110,0.90389922,2350.2,2349.6,1.28104]
[1725973384309,0.78352784,2350.1,2349.6,1.28104]
[1725973384605,0.87959902,2350.1,2349.5,2.3824]
[1725973384835,2.83824073,2350.1,2349.5,2.3824]
[1725973385102,0.87959902,2350.1,2349.5,2.3824]
[1725973385319,0.90389922,2350.2,2349.6,0.08511061]
[1725973385609,0.0243002,2350.2,2349.7,2.2608]
[1725973386176,0.0243002,2350.2,2349.8,0.08509871]
[1725973386493,0.0243002,2350.2,2349.8,0.41831258]
[1725973386690,0.0243002,2350.2,2349.8,0.33321387]
[1725973387106,0.0243002,2350.2,2349.7,2.2608]
[1725973387903,0.0243002,2350.2,2349.8,0.08510551]
[1725973388109,0.0243002,2350.2,2349.9,2.4178]
[1725973388844,0.0243002,2350.2,2350.0,0.08509798]
[1725973388991,0.0243002,2350.2,2350.1,2.4178]
[1725973389191,0.0243002,2350.2,2350.1,2.65958]
[1725973391522,0.0243002,2350.2,2350.1,4.65958]
[1725973391850,0.0243002,2350.2,2350.1,2.65958]
[1725973392346,0.0243002,2350.2,2350.1,2.4178]
[1725973392704,0.0243002,2350.2,2349.7,2.3247]
[1725973397661,0.0243002,2350.2,2349.4,7.48]
[1725973397863,0.0243002,2350.2,2349.4,9.926]
[1725973397864,0.25401022,2350.2,2349.4,9.926]
[1725973398286,3.26007661,2350.1,2349.2,7.48]
[1725973398450,0.35140868,2350.0,2349.2,7.48]
[1725973399595,0.35140868,2350.0,2349.3,2.338]
[1725973399795,0.25401022,2350.2,2349.3,2.338]
[1725973400590,2.4993,2350.1,2349.2,7.48]
[1725973400753,6.51219217,2350.1,2349.2,7.48]
[1725973400955,0.76458014,2350.0,2349.2,7.48]
[1725973401565,0.76458014,2350.0,2349.0,9.8853]
[1725973402251,2.466,2349.9,2349.0,7.48]
[1725973402495,2.2788,2349.7,2348.7,2.4358]
[1725973403087,3.15839902,2349.7,2348.7,2.4358]
[1725973403254,3.15839902,2349.7,2348.3,0.0243544]
[1725973403255,2.2908,2349.5,2348.4,2.3409]
[1725973403455,6.30369217,2349.5,2348.4,2.3409]
[1725973403654,7.18329119,2349.5,2348.4,2.3409]
[1725973403893,6.30369217,2349.5,2348.4,2.3409]
[1725973404049,0.63036922,2349.4,2348.5,0.23652544]
[1725973404496,2.3707,2349.3,2348.4,2.3409]
[1725973405756,1.31939853,2349.6,2348.4,4.3409]
[1725973405757,2.263,2349.6,2348.4,4.3409]
[1725973405963,2.263,2349.6,2348.6,2.3254]
[1725973406272,2.263,2349.8,2348.6,37.3254]
[1725973407400,2.3758,2349.7,2348.6,2.3254]
[1725973407695,2.6900599,2349.7,2348.6,2.3254]
[1725973407894,2.6900599,2349.7,2348.7,0.08513974]
[1725973408190,3.56965892,2349.7,2348.7,0.08513974]
[1725973409277,3.56965892,2349.7,2348.8,2.4092]
[1725973409478,0.78405722,2349.6,2348.8,2.4092]
[1725973409677,0.43537161,2349.5,2348.8,2.4092]
[1725973410033,0.43537161,2349.5,2348.5,2.2682]
[1725973410210,0.43537161,2349.5,2348.6,0.08513905]
[1725973410496,2.4247,2349.4,2348.5,2.2682]
[1725973410703,2.4247,2349.4,2348.6,0.22682]
[1725973411310,2.4247,2349.4,2348.7,0.08513929]
[1725973411797,2.4247,2349.4,2348.6,0.22682]
[1725973413470,3.30429902,2349.4,2348.6,0.22682]
[1725973413784,2.4247,2349.4,2348.7,0.08513929]
[1725973414714,0.87959902,2349.5,2348.7,0.08513929]
[1725973414878,0.87959902,2349.6,2348.8,2.3752]
[1725973415217,0.87959902,2349.5,2348.9,0.33116674]
[1725973416768,0.87959902,2349.5,2348.9,0.08513281]
[1725973417420,0.87959902,2349.4,2348.8,2.3752]
[1725973417712,0.87959902,2349.4,2348.9,0.08513549]
[1725973418080,0.87959902,2349.4,2348.8,2.3752]
[1725973418418,1.62847725,2349.4,2348.8,2.3752]
[1725973418566,0.78440359,2349.3,2348.8,2.3752]
[1725973418916,1.62847725,2349.4,2348.6,2.61042]
[1725973419098,3.27185667,2349.3,2348.6,2.61042]
[1725973419276,2.487,2349.3,2348.7,0.08514265]
[1725973419607,3.36659902,2349.3,2348.7,0.08514265]
[1725973420622,3.35671046,2349.3,2348.7,0.08514265]
[1725973420916,2.84124425,2349.2,2348.6,2.3836]
[1725973421122,0.87959902,2349.2,2348.6,2.3836]
[1725973421323,4.23630948,2349.3,2348.6,3.36996]
[1725973421500,0.78442746,2349.2,2348.6,3.36996]
[1725973421822,2.84064461,2349.2,2348.6,3.36996]
[1725973422134,3.66720779,2349.2,2348.6,2.3836]
[1725973422420,1.7061622,2349.2,2348.6,2.3836]
[1725973422633,0.82656318,2349.2,2348.6,2.3836]
[1725973423114,2.4924169,2349.2,2348.6,2.3836]
[1725973423314,0.82656318,2349.2,2348.6,2.3836]
[1725973423910,4.09473898,2349.1,2348.6,2.3836]
[1725973424098,4.974338,2349.1,2348.4,7.48]
[1725973424280,4.09473898,2349.1,2348.4,7.48]
[1725973424887,4.974338,2349.1,2348.4,7.48]
[1725973425190,2.4816,2348.9,2348.3,2.4587544]
[1725973425397,0.4974338,2349.0,2348.3,2.4587544]
[1725973425599,3.36119902,2349.2,2348.4,0.08514913]
[1725973425801,0.7859768,2349.1,2348.4,0.08514913]
[1725973426233,3.26222883,2349.1,2348.3,2.4587544]
[1725973426398,0.66234279,2349.0,2348.3,2.4587544]
[1725973428040,2.4816,2349.2,2348.3,2.4587544]
[1725973428335,3.36119902,2349.2,2348.3,2.4587544]
[1725973429003,2.4816,2349.2,2348.3,2.4587544]
[1725973429203,3.26222883,2349.1,2348.3,2.4587544]
[1725973429431,4.33776554,2349.1,2348.3,3.45262984]
[1725973430710,4.33776554,2349.1,2348.3,2.4587544]
[1725973432530,0.78655619,2349.0,2348.3,2.4587544]
[1725973432931,3.26222883,2348.7,2348.3,0.0243544]
[1725973433117,0.32622288,2348.6,2348.3,0.0243544]
[1725973433316,0.87959902,2349.0,2348.3,0.0243544]
[1725973433565,0.87959902,2348.9,2348.3,0.0243544]
[1725973433726,0.41650845,2348.8,2348.3,0.0243544]
[1725973435739,0.87959902,2348.9,2348.3,0.0243544]
[1725973435955,0.87959902,2349.0,2348.3,0.0243544]
[1725973436157,2.84522745,2349.0,2348.3,0.0243544]
[1725973436374,3.81390006,2348.9,2348.3,0.0243544]
[1725973436550,0.78637447,2348.8,2348.3,0.0243544]
[1725973436882,4.14182785,2349.0,2348.3,0.0243544]
[1725973437028,0.87959902,2349.1,2348.4,2.2678]
[1725973437364,8.71939853,2349.2,2348.6,2.2678]
[1725973437365,7.4,2349.2,2348.6,2.2678]
[1725973437588,0.87959902,2349.2,2348.6,2.2678]
[1725973437725,0.87959902,2349.3,2348.7,0.08514482]
[1725973437928,0.87959902,2349.4,2348.8,2.2678]
[1725973438155,0.87959902,2349.5,2348.9,0.08513574]
[1725973438357,0.87959902,2349.4,2348.9,0.08513574]
[1725973438564,1.62960529,2349.4,2348.9,0.08513575]
[1725973438860,0.78724615,2349.3,2348.8,2.2678]
[1725973439068,1.62960529,2349.4,2348.8,2.2678]
[1725973439262,0.78743642,2349.3,2348.8,2.2678]
[1725973439464,0.87959902,2349.3,2348.8,2.2678]
[1725973439674,0.87959902,2349.3,2348.8,2.49458]
[1725973439843,1.31939853,2349.5,2348.9,0.08513576]
[1725973439844,0.87959902,2349.4,2348.9,0.08513576]
[1725973440279,0.87959902,2349.3,2348.8,2.49458]
[1725973440515,0.87959902,2349.4,2349.0,2.2587]
[1725973440685,0.87959902,2349.5,2349.0,2.2587]
[1725973440890,0.87959902,2349.3,2348.4,2.3313]
[1725973441202,0.87959902,2349.2,2348.4,2.3313]
[1725973441523,0.87959902,2349.0,2348.5,0.08514626]
[1725973442012,0.87959902,2349.2,2348.6,2.3329]
[1725973442220,0.87959902,2349.2,2348.8,2.3329]
[1725973442370,0.87959902,2349.1,2348.5,2.3329]
[1725973442572,0.87959902,2348.9,2348.5,2.3329]
[1725973443385,0.87959902,2348.8,2348.3,0.0243544]
[1725973443609,2.85282883,2348.8,2348.3,0.0243544]
[1725973443771,2.85277868,2348.7,2348.3,0.0243544]
[1725973444009,0.87959902,2348.5,2348.3,0.0243544]
[1725973444232,1.66876767,2348.5,2348.3,0.0243544]
[1725973444649,0.87959902,2348.5,2348.3,0.0243544]
[1725973445341,2.85302877,2348.4,2348.3,0.0243544]
[1725973445542,0.7893719,2348.4,2348.3,0.0243544]
[1725973445728,1.66897092,2348.5,2348.3,0.0243544]
[1725973445937,0.7893719,2348.4,2348.3,0.0243544]
[1725973446116,0.87959902,2348.5,2348.3,0.0243544]
[1725973446317,0.7897517,2348.4,2348.3,0.0243544]
[1725973446548,3.29377779,2348.4,2348.3,0.0243544]
[1725973446757,2.10915023,2348.4,2348.3,0.0243544]
[1725973446912,3.95703354,2348.4,2348.3,0.0243544]
[1725973447108,2.63763501,2348.4,2348.3,0.0243544]
[1725973447308,4.39705431,2348.4,2348.3,0.0243544]
[1725973447551,5.9765088,2348.4,2348.3,0.0243544]
[1725973448714,3.96077767,2348.4,2348.3,0.0243544]
[1725973449114,4.21664355,2348.4,2348.3,0.0243544]
[1725973449338,3.96037201,2348.4,2348.3,0.0243544]
[1725973449657,3.9603671,2348.4,2348.3,0.0243544]
[1725973450011,3.29711135,2348.4,2348.3,0.0243544]
[1725973450207,2.85623416,2348.4,2348.3,0.0243544]
[1725973450909,2.06639395,2348.4,2348.3,0.0243544]
[1725973451530,0.78984021,2348.4,2348.3,2.2886544]
[1725973451859,1.32251083,2348.6,2348.3,2.51751984]
[1725973451860,0.88163364,2348.6,2348.3,2.51751984]
[1725973452568,1.67167676,2348.6,2348.3,0.0243544]
[1725973452740,2.85674145,2348.5,2348.3,0.0243544]
[1725973452941,0.79002863,2348.4,2348.3,0.0243544]
[1725973453126,0.88163364,2348.5,2348.3,0.0243544]
[1725973453330,1.67168624,2348.5,2348.3,0.0243544]
[1725973453570,0.88163364,2348.5,2348.3,0.0243544]
[1725973454481,2.85670347,2348.5,2348.3,0.0243544]
[1725973454633,0.88163364,2348.6,2348.3,0.0243544]
[1725973454986,1.67159135,2348.6,2348.3,0.0243544]
[1725973455127,0.88163364,2348.5,2348.3,0.0243544]
[1725973455533,2.11246854,2348.6,2348.3,0.0243544]
[1725973455534,0.88163364,2348.6,2348.3,0.0243544]
[1725973455846,1.6715743,2348.6,2348.3,0.0243544]
[1725973456043,2.06657186,2348.6,2348.3,0.0243544]
[1725973456381,0.78991398,2348.5,2348.3,0.0243544]
[1725973456545,0.88163364,2348.6,2348.3,0.10951104]
[1725973456869,1.67147618,2348.6,2348.3,0.10951104]
[1725973457073,2.85623999,2348.6,2348.3,0.0243544]
[1725973457244,0.78984254,2348.5,2348.3,0.0243544]
[1725973457450,0.88163364,2348.6,2348.3,0.0243544]
[1725973457648,1.67150274,2348.6,2348.3,0.0243544]
[1725973457976,1.67150274,2348.6,2348.3,0.10951046]
[1725973459282,0.88163364,2348.6,2348.3,0.36002151]
[1725973459577,1.32251083,2348.7,2348.4,2.2653]
[1725973459578,1.67195275,2348.7,2348.4,2.2653]
[1725973459812,1.67195275,2348.7,2348.5,0.08514858]
[1725973459813,0.88163364,2348.7,2348.5,0.08514858]
[1725973459957,0.88163364,2348.7,2348.5,0.32262888]
[1725973460284,0.88163364,2348.8,2348.5,0.32262888]
[1725973460645,2.06749451,2348.8,2348.5,0.32262888]
[1725973460845,0.79058495,2348.7,2348.5,0.32262888]
[1725973461076,0.88163364,2348.8,2348.5,0.2374803]
[1725973461250,1.67220267,2348.7,2348.4,2.2653]
[1725973461454,0.88163364,2348.7,2348.5,0.27187352]
[1725973461652,0.88163364,2348.8,2348.5,0.27187352]
[1725973461853,1.67223934,2348.8,2348.5,0.35702084]
[1725973462878,0.88163364,2348.8,2348.5,0.70096443]
[1725973463079,1.67235798,2348.7,2348.4,2.2653]
[1725973463371,1.67235798,2348.6,2348.3,0.0243544]
[1725973463580,1.67235798,2348.5,2348.3,0.0243544]
[1725973463951,1.67235798,2348.4,2348.3,0.0243544]
[1725973464188,2.85807426,2348.4,2348.3,0.0243544]
[1725973464686,5.3160538,2348.4,2348.3,0.0243544]
[1725973465271,5.76150018,2348.4,2348.3,0.0243544]
[1725973466472,8.14780018,2348.4,2348.3,0.0243544]
[1725973466656,12.01860502,2348.4,2347.8,0.0239081]
[1725973466977,1.32018918,2347.9,2347.8,0.0239081]
[1725973467180,3.29334475,2347.9,2347.8,0.0239081]
[1725973468588,2.8528394,2347.9,2347.8,0.0239081]
[1725973468957,2.06357717,2347.9,2347.8,0.0239081]
[1725973469646,0.78926223,2347.9,2347.8,0.0239081]
[1725973469866,0.87968383,2347.9,2347.8,0.0239081]
[1725973470067,2.0622589,2347.9,2347.8,0.0239081]
[1725973470278,0.78926223,2347.9,2347.8,0.0239081]
[1725973471041,0.87968383,2348.0,2347.8,0.0239081]
[1725973471392,1.66817579,2348.0,2347.8,0.0239081]
[1725973471545,1.58523258,2348.0,2347.8,0.0239081]
[1725973471739,0.78837351,2347.9,2347.8,0.0239081]
[1725973471939,1.58523258,2348.0,2347.8,0.0239081]
[1725973472594,0.87968383,2348.1,2347.8,0.0239081]
[1725973472879,0.87968383,2348.2,2347.8,0.0239081]
[1725973473646,3.18068383,2348.2,2347.8,0.0239081]
[1725973474018,3.70611705,2348.1,2347.8,0.0239081]
[1725973474159,0.87968383,2348.1,2347.8,0.0239081]
[1725973474481,0.87968383,2348.2,2347.8,0.0239081]
[1725973475082,2.06272557,2348.2,2347.8,0.0239081]
[1725973475383,2.85142006,2348.2,2347.8,0.0239081]
[1725973475599,0.87968383,2348.0,2347.8,0.0239081]
[1725973475882,2.85145367,2348.0,2347.8,0.0239081]
[1725973476099,0.87968383,2347.9,2347.8,0.0239081]
[1725973476783,2.0631152,2347.9,2347.8,0.0239081]
[1725973476970,2.85206945,2347.9,2347.8,0.0239081]
[1725973477169,1.66863808,2347.9,2347.8,0.0239081]
[1725973477496,7.59340182,2348.1,2347.8,0.0239081]
[1725973477497,0.87968383,2348.0,2347.8,0.0239081]
[1725973477695,0.87968383,2348.1,2347.8,0.0239081]
[1725973477850,0.30804414,2348.0,2347.8,0.0239081]
[1725973478956,1.18772797,2348.0,2347.8,0.0239081]
[1725973479349,0.30804414,2348.0,2347.8,0.0239081]
[1725973480389,0.30804414,2348.0,2347.4,9.8885081]
[1725973480551,0.87968383,2348.1,2347.4,10.87735891]
[1725973480750,0.78819125,2348.1,2347.5,0.08518162]
[1725973480987,0.87968383,2348.1,2347.4,10.87735891]
[1725973481193,0.87968383,2348.1,2347.5,0.08518356]
[1725973481560,1.667726,2348.1,2347.5,0.08518356]
[1725973481882,2.53036095,2348.0,2347.4,10.87735891]
[1725973482441,2.53036095,2348.0,2347.4,9.8885081]
[1725973482681,3.41004478,2348.0,2347.4,9.8885081]
[1725973482877,0.04296095,2348.0,2347.4,2.4085081]
[1725973483285,0.87968383,2348.1,2347.5,0.0851843]
[1725973483456,0.87968383,2348.2,2347.5,0.33455354]
[1725973483644,1.66778735,2348.2,2347.5,0.24936924]
[1725973483845,0.87968383,2348.2,2347.5,0.24936924]
[1725973484045,1.66777597,2348.2,2347.5,0.24936924]
[1725973484287,0.78922287,2348.1,2347.5,0.24936924]
[1725973484498,0.87968383,2348.2,2347.5,0.24936924]
[1725973484649,0.87968383,2348.1,2347.5,0.24936924]
[1725973485050,2.8529844,2348.1,2347.5,0.24936924]
[1725973485360,0.78931474,2348.0,2347.5,0.24936924]
[1725973485556,0.87968383,2348.1,2347.5,0.24936924]
[1725973485961,1.66920717,2348.2,2347.6,0.08517713]
[1725973486287,2.85385734,2348.2,2347.5,0.24936924]
[1725973486491,2.85385734,2348.2,2347.7,2.4148]
[1725973486688,0.87968383,2348.2,2347.8,0.08517377]
[1725973487364,2.06432746,2348.2,2347.8,0.08517377]
[1725973487548,0.87968383,2348.2,2347.7,2.68973463]
[1725973487748,0.87968383,2348.2,2347.8,0.26897346]
[1725973487953,0.87968383,2348.3,2347.9,0.08516868]
[1725973489179,0.87968383,2348.2,2347.8,0.26897346]
[1725973489486,0.87968383,2348.2,2347.7,2.4148]
[1725973489854,2.85456313,2348.1,2347.7,2.4148]
[1725973490053,0.87968383,2348.1,2347.7,2.4148]
[1725973490396,0.87968383,2348.2,2347.7,3.42921692]
[1725973490562,0.87968383,2348.2,2347.7,2.4148]
[1725973491158,0.87968383,2348.3,2347.7,2.4148]
[1725973491353,0.87968383,2348.2,2347.8,0.08517376]
[1725973491664,0.87968383,2348.3,2347.9,2.2735]
[1725973491878,0.87968383,2348.3,2348.0,0.08516824]
[1725973492076,0.87968383,2348.3,2347.9,2.2735]
[1725973492282,0.87968383,2348.3,2347.5,8.37532963]
[1725973492283,0.87968383,2348.2,2347.5,8.37532963]
[1725973492447,0.87968383,2348.2,2347.6,2.4159]
[1725973492652,0.87968383,2348.1,2347.6,2.4159]
[1725973493770,2.865551,2348.1,2347.6,2.4159]
[1725973494305,2.865551,2348.1,2347.6,3.43281773]
[1725973494860,0.87968383,2348.1,2347.6,3.43281773]
[1725973495061,0.87968383,2348.1,2347.6,2.4159]
[1725973495257,2.86510626,2348.1,2347.6,2.4159]
[1725973496201,0.79416897,2348.0,2347.6,2.4159]
[1725973496503,0.87968383,2348.0,2347.6,2.4159]
[1725973500963,2.31744992,2348.0,2347.4,2.2816081]
[1725973501164,0.79559722,2347.9,2347.4,2.2816081]
[1725973501811,1.32018918,2348.1,2347.5,0.08518325]
[1725973501812,0.87968383,2348.1,2347.5,0.08518325]
[1725973502023,0.87968383,2348.1,2347.5,0.37845683]
[1725973502159,1.67530004,2348.1,2347.5,0.37845683]
[1725973502367,0.87968383,2348.4,2347.8,2.3908]
[1725973502574,0.87968383,2348.5,2348.1,5.65302883]
[1725973502808,0.87968383,2348.8,2348.3,2.3908]
[1725973503111,0.87968383,2348.8,2348.4,0.08514875]
[1725973503463,1.67181193,2348.8,2348.3,2.3908]
[1725973503658,0.87968383,2348.7,2348.3,2.3908]
[1725973503862,0.87968383,2348.6,2348.3,2.3908]
[1725973504094,2.11231728,2348.7,2348.3,2.3908]
[1725973504095,0.87968383,2348.7,2348.3,2.3908]
[1725973504514,2.85941241,2348.7,2348.3,2.3908]
[1725973504688,0.79189143,2348.6,2348.3,2.3908]
[1725973505008,0.87968383,2348.7,2348.3,2.3908]
[1725973505601,1.67144131,2348.7,2348.3,2.3908]
[1725973505811,2.54680644,2348.7,2348.3,2.3908]
[1725973505962,0.79175748,2348.6,2348.3,2.3908]
[1725973506161,0.87968383,2348.7,2348.3,2.3908]
[1725973506364,0.87968383,2348.7,2348.4,0.08515293]
[1725973506639,0.87968383,2348.8,2348.3,2.3908]
[1725973506906,0.87968383,2348.8,2348.4,0.32422535]
[1725973507934,0.87968383,2348.8,2348.5,2.4335]
[1725973508105,0.87968383,2348.9,2348.6,0.08514597]
[1725973508278,1.67272934,2348.9,2348.6,0.08514597]
[1725973508485,0.79304551,2348.8,2348.6,0.08514597]
[1725973508791,0.87968383,2348.9,2348.6,0.33701057]
[1725973509314,0.79321401,2349.0,2348.6,0.33701057]
[1725973509315,0.87968383,2349.0,2348.6,0.33701057]
[1725973509707,1.6727497,2349.0,2348.6,0.2518646]
[1725973509999,1.6727497,2348.9,2348.5,2.4335]
[1725973510215,0.87968383,2348.9,2348.2,2.4335]
[1725973510432,0.92264478,2348.8,2348.2,2.4335]
[1725973510712,0.87968383,2348.7,2348.2,2.4335]
[1725973510872,2.86254378,2348.7,2348.2,2.4335]
[1725973511073,2.86254378,2348.6,2348.2,2.4335]
[1725973511275,0.87968383,2348.6,2348.2,2.4335]
[1725973511574,0.87968383,2348.7,2348.2,2.67685]
[1725973512502,0.87968383,2348.8,2348.3,0.08514951]
[1725973512706,0.87968383,2348.8,2348.3,0.68757234]
[1725973512869,0.87968383,2348.8,2348.3,0.60242283]
[1725973513819,2.86182739,2348.8,2348.3,0.60242283]
[1725973513978,0.87968383,2348.8,2348.3,0.60242283]
[1725973514372,0.87968383,2348.9,2348.5,2.2521]
[1725973514710,1.32018918,2349.0,2348.5,2.2521]
[1725973514711,0.87968383,2349.1,2348.6,0.0851414]
[1725973514917,0.87968383,2349.1,2348.6,0.35165899]
[1725973515274,0.87968383,2349.1,2348.5,2.2521]
[1725973515275,0.87968383,2349.0,2348.5,2.2521]
[1725973515571,0.92264478,2349.0,2348.5,2.2521]